[Event "January 9 Late 2024"]
[Site "https://www.chess.com"]
[Date "2024.01.10"]
[Round "6"]
[White "Kandil, Ahmed"]
[Black "Sargsyan, Shant"]
[Result "1/2-1/2"]
[Board "53"]
[TimeControl "180+1"]
[WhiteFideId "10628401"]
[BlackFideId "13306766"]
[WhiteElo "2571"]
[BlackElo "2900"]
[WhiteTeam "EGY"]
[BlackTeam "ARM"]
[WhiteClock "0:00:10"]
[BlackClock "0:00:16"]

1. e4 {[%clk 0:02:53]}  b6 {[%clk 0:02:59]} 2. d4 {[%clk 0:02:52]}  Bb7 {[%clk 0:03:00]} 3. Nc3 {[%clk 0:02:52]}  e6 {[%clk 0:03:00]} 4. Bd3 {[%clk 0:02:51]}  Bb4 {[%clk 0:02:58]} 5. Qe2 {[%clk 0:02:50]}  Nf6 {[%clk 0:02:59]} 6. Nf3 {[%clk 0:02:48]}  d5 {[%clk 0:02:59]} 7. e5 {[%clk 0:02:40]}  Ne4 {[%clk 0:02:56]} 8. Bd2 {[%clk 0:02:40]}  Nxd2 {[%clk 0:02:55]} 9. Nxd2 {[%clk 0:02:38]}  c5 {[%clk 0:02:53]} 10. Qg4 {[%clk 0:02:36]}  g6 {[%clk 0:02:49]} 11. a3 {[%clk 0:02:19]}  cxd4 {[%clk 0:02:45]} 12. Qxd4 {[%clk 0:02:11]}  Nc6 {[%clk 0:02:42]} 13. Qf4 {[%clk 0:02:10]}  Bxc3 {[%clk 0:02:32]} 14. bxc3 {[%clk 0:02:11]}  Qc7 {[%clk 0:02:33]} 15. Nf3 {[%clk 0:02:11]}  Na5 {[%clk 0:02:28]} 16. O-O {[%clk 0:01:54]}  Qxc3 {[%clk 0:02:20]} 17. Qf6 {[%clk 0:01:51]}  O-O {[%clk 0:02:15]} 18. h4 {[%clk 0:01:50]}  Qc7 {[%clk 0:02:04]} 19. h5 {[%clk 0:01:23]}  Qd8 {[%clk 0:02:04]} 20. Qf4 {[%clk 0:01:23]}  Rc8 {[%clk 0:02:04]} 21. Qh6 {[%clk 0:01:19]}  Qe7 {[%clk 0:01:51]} 22. Ng5 {[%clk 0:01:11]}  f6 {[%clk 0:01:51]} 23. exf6 {[%clk 0:01:09]}  Rxf6 {[%clk 0:01:52]} 24. hxg6 {[%clk 0:01:09]}  hxg6 {[%clk 0:01:53]} 25. Rae1 {[%clk 0:00:51]}  Qg7 {[%clk 0:01:50]} 26. Qxg7+ {[%clk 0:00:50]}  Kxg7 {[%clk 0:01:51]} 27. Nxe6+ {[%clk 0:00:50]}  Kg8 {[%clk 0:01:48]} 28. Ng5 {[%clk 0:00:47]}  Nc6 {[%clk 0:01:48]} 29. Re6 {[%clk 0:00:41]}  Rxe6 {[%clk 0:01:41]} 30. Nxe6 {[%clk 0:00:40]}  Kf7 {[%clk 0:01:42]} 31. Ng5+ {[%clk 0:00:33]}  Kf6 {[%clk 0:01:41]} 32. f4 {[%clk 0:00:33]}  Nd4 {[%clk 0:01:36]} 33. Re1 {[%clk 0:00:31]}  Rc6 {[%clk 0:01:26]} 34. Re8 {[%clk 0:00:30]}  Rc8 {[%clk 0:01:21]} 35. Re5 {[%clk 0:00:25]}  Rc7 {[%clk 0:01:02]} 36. Kf2 {[%clk 0:00:25]}  Bc8 {[%clk 0:00:59]} 37. Rxd5 {[%clk 0:00:22]}  Nf5 {[%clk 0:00:57]} 38. Rd8 {[%clk 0:00:19]}  a5 {[%clk 0:00:51]} 39. g4 {[%clk 0:00:19]}  Nh6 {[%clk 0:00:47]} 40. Rd6+ {[%clk 0:00:18]}  Ke7 {[%clk 0:00:47]} 41. Rxg6 {[%clk 0:00:18]}  Nxg4+ {[%clk 0:00:47]} 42. Kg3 {[%clk 0:00:19]}  Ne3 {[%clk 0:00:40]} 43. Rg7+ {[%clk 0:00:19]}  Kd8 {[%clk 0:00:37]} 44. Nf7+ {[%clk 0:00:18]}  Ke8 {[%clk 0:00:24]} 45. Nd6+ {[%clk 0:00:18]}  Kd8 {[%clk 0:00:24]} 46. Rg8+ {[%clk 0:00:18]}  Kd7 {[%clk 0:00:23]} 47. Nxc8 {[%clk 0:00:18]}  Rxc8 {[%clk 0:00:23]} 48. Rxc8 {[%clk 0:00:17]}  Kxc8 {[%clk 0:00:24]} 49. f5 {[%clk 0:00:18]}  Kd7 {[%clk 0:00:24]} 50. Kf4 {[%clk 0:00:18]}  Nd5+ {[%clk 0:00:20]} 51. Ke5 {[%clk 0:00:18]}  Nc3 {[%clk 0:00:21]} 52. f6 {[%clk 0:00:17]}  Ke8 {[%clk 0:00:20]} 53. Kd6 {[%clk 0:00:16]}  Nb1 {[%clk 0:00:16]} 54. Bg6+ {[%clk 0:00:14]}  Kf8 {[%clk 0:00:16]} 55. a4 {[%clk 0:00:14]}  Nc3 {[%clk 0:00:16]} 56. Kc6 {[%clk 0:00:14]}  Nxa4 {[%clk 0:00:16]} 57. Kb5 {[%clk 0:00:14]}  Nc3+ {[%clk 0:00:16]} 58. Kxb6 {[%clk 0:00:10]}  a4 {[%clk 0:00:16]} 59. Bd3 {[%clk 0:00:10]}  Kf7 {[%clk 0:00:11]} 60. Bc4+ {[%clk 0:00:10]}  Kxf6 {[%clk 0:00:11]} 61. Kc5 {[%clk 0:00:11]}  Ke5 {[%clk 0:00:12]} 62. Kb4 {[%clk 0:00:10]}  Kd4 {[%clk 0:00:12]} 63. Bg8 {[%clk 0:00:10]}  Nd1 {[%clk 0:00:08]} 64. Kxa4 {[%clk 0:00:10]}  Kc3 {[%clk 0:00:09]} 65. Bh7 {[%clk 0:00:09]}  Ne3 {[%clk 0:00:10]} 66. Bg6 {[%clk 0:00:09]}  Nf1 {[%clk 0:00:10]} 67. Kb5 {[%clk 0:00:08]}  Nd2 {[%clk 0:00:11]} 68. Kc5 {[%clk 0:00:08]}  Nf3 {[%clk 0:00:12]} 69. Kd5 {[%clk 0:00:08]}  Nd2 {[%clk 0:00:13]} 70. Ke5 {[%clk 0:00:08]}  Nb1 {[%clk 0:00:14]} 71. Kf4 {[%clk 0:00:09]}  Na3 {[%clk 0:00:15]} 72. Ke3 {[%clk 0:00:10]}  Nxc2+ {[%clk 0:00:16]} 1/2-1/2

[Event "January 9 Late 2024"]
[Site "https://www.chess.com"]
[Date "2024.01.09"]
[Round "6"]
[White "Tari, Aryan"]
[Black "Lin, Bryan Enming"]
[Result "1/2-1/2"]
[Board "54"]
[TimeControl "180+1"]
[WhiteFideId "1510045"]
[BlackFideId "30987121"]
[WhiteElo "2895"]
[BlackElo "2565"]
[WhiteTeam "NOR"]
[BlackTeam "USA"]
[WhiteClock "0:00:42"]
[BlackClock "0:00:46"]

1. a3 {[%clk 0:02:50]}  Nf6 {[%clk 0:02:54]} 2. Nf3 {[%clk 0:02:45]}  g6 {[%clk 0:02:54]} 3. d4 {[%clk 0:02:45]}  Bg7 {[%clk 0:02:55]} 4. Nbd2 {[%clk 0:02:46]}  O-O {[%clk 0:02:55]} 5. e4 {[%clk 0:02:46]}  d6 {[%clk 0:02:56]} 6. Bd3 {[%clk 0:02:43]}  c5 {[%clk 0:02:46]} 7. d5 {[%clk 0:02:34]}  e6 {[%clk 0:02:46]} 8. dxe6 {[%clk 0:02:31]}  Bxe6 {[%clk 0:02:45]} 9. c4 {[%clk 0:02:30]}  Nc6 {[%clk 0:02:45]} 10. h3 {[%clk 0:02:30]}  Nd7 {[%clk 0:02:45]} 11. O-O {[%clk 0:02:29]}  Nde5 {[%clk 0:02:45]} 12. Be2 {[%clk 0:02:27]}  Nxf3+ {[%clk 0:02:43]} 13. Nxf3 {[%clk 0:02:27]}  Nd4 {[%clk 0:02:39]} 14. Nxd4 {[%clk 0:02:26]}  Bxd4 {[%clk 0:02:40]} 15. Bh6 {[%clk 0:02:25]}  Re8 {[%clk 0:02:40]} 16. b4 {[%clk 0:02:25]}  Qf6 {[%clk 0:02:39]} 17. Rb1 {[%clk 0:02:22]}  Qh4 {[%clk 0:02:38]} 18. Qd2 {[%clk 0:02:14]}  Bxh3 {[%clk 0:02:32]} 19. Bg5 {[%clk 0:02:06]}  Qg3 {[%clk 0:02:32]} 20. Bf3 {[%clk 0:02:02]}  Be6 {[%clk 0:02:19]} 21. Qxd4 {[%clk 0:01:44]}  Qxg5 {[%clk 0:02:12]} 22. Qxd6 {[%clk 0:01:45]}  cxb4 {[%clk 0:02:00]} 23. Rxb4 {[%clk 0:01:43]}  b6 {[%clk 0:02:00]} 24. Rb5 {[%clk 0:01:37]}  Qe7 {[%clk 0:01:58]} 25. e5 {[%clk 0:01:27]}  Rac8 {[%clk 0:01:40]} 26. Qxe7 {[%clk 0:01:23]}  Rxe7 {[%clk 0:01:41]} 27. Bd5 {[%clk 0:01:24]}  Bxd5 {[%clk 0:01:40]} 28. cxd5 {[%clk 0:01:20]}  Rxe5 {[%clk 0:01:40]} 29. Rd1 {[%clk 0:01:21]}  Rd8 {[%clk 0:01:40]} 30. a4 {[%clk 0:01:21]}  g5 {[%clk 0:01:38]} 31. a5 {[%clk 0:01:20]}  bxa5 {[%clk 0:01:38]} 32. Rxa5 {[%clk 0:01:21]}  Rd7 {[%clk 0:01:39]} 33. Ra6 {[%clk 0:01:20]}  Rexd5 {[%clk 0:01:37]} 34. Rxd5 {[%clk 0:01:21]}  Rxd5 {[%clk 0:01:38]} 35. Rxa7 {[%clk 0:01:21]}  Kg7 {[%clk 0:01:38]} 36. g3 {[%clk 0:01:20]}  h6 {[%clk 0:01:37]} 37. Kg2 {[%clk 0:01:20]}  Kg6 {[%clk 0:01:37]} 38. Ra6+ {[%clk 0:01:20]}  f6 {[%clk 0:01:38]} 39. Ra8 {[%clk 0:01:21]}  h5 {[%clk 0:01:37]} 40. Rg8+ {[%clk 0:01:21]}  Kf5 {[%clk 0:01:31]} 41. Ra8 {[%clk 0:01:22]}  Rd7 {[%clk 0:01:24]} 42. Rh8 {[%clk 0:01:21]}  Kg6 {[%clk 0:01:24]} 43. Rg8+ {[%clk 0:01:22]}  Rg7 {[%clk 0:01:24]} 44. Ra8 {[%clk 0:01:23]}  g4 {[%clk 0:01:24]} 45. Ra5 {[%clk 0:01:22]}  Rf7 {[%clk 0:01:22]} 46. Rb5 {[%clk 0:01:23]}  f5 {[%clk 0:01:22]} 47. Ra5 {[%clk 0:01:23]}  f4 {[%clk 0:01:21]} 48. Ra6+ {[%clk 0:01:23]}  Rf6 {[%clk 0:01:18]} 49. Ra8 {[%clk 0:01:12]}  f3+ {[%clk 0:01:00]} 50. Kh2 {[%clk 0:01:08]}  Rb6 {[%clk 0:00:59]} 51. Rc8 {[%clk 0:01:08]}  Rb2 {[%clk 0:00:58]} 52. Kg1 {[%clk 0:01:08]}  Rb1+ {[%clk 0:00:59]} 53. Kh2 {[%clk 0:01:08]}  Rf1 {[%clk 0:00:59]} 54. Rg8+ {[%clk 0:01:08]}  Kf7 {[%clk 0:00:59]} 55. Rf8+ {[%clk 0:01:08]}  Ke6 {[%clk 0:00:56]} 56. Re8+ {[%clk 0:01:08]}  Kd5 {[%clk 0:00:56]} 57. Rd8+ {[%clk 0:00:48]}  Ke4 {[%clk 0:00:53]} 58. Rd4+ {[%clk 0:00:46]}  Ke5 {[%clk 0:00:51]} 59. Rd5+ {[%clk 0:00:46]}  Ke6 {[%clk 0:00:50]} 60. Rd6+ {[%clk 0:00:47]}  Ke5 {[%clk 0:00:50]} 61. Rd5+ {[%clk 0:00:47]}  Kf6 {[%clk 0:00:50]} 62. Rd6+ {[%clk 0:00:45]}  Kf5 {[%clk 0:00:46]} 63. Rd5+ {[%clk 0:00:46]}  Ke4 {[%clk 0:00:46]} 64. Rd4+ {[%clk 0:00:45]}  Ke5 {[%clk 0:00:46]} 65. Rd5+ {[%clk 0:00:42]} 1/2-1/2

[Event "January 9 Late 2024"]
[Site "https://www.chess.com"]
[Date "2024.01.09"]
[Round "6"]
[White "Santos Latasa, Jaime"]
[Black "Srdanovic, Jovana"]
[Result "1-0"]
[Board "55"]
[TimeControl "180+1"]
[WhiteFideId "2293307"]
[BlackFideId "954810"]
[WhiteElo "2879"]
[BlackElo "2561"]
[WhiteTeam "ESP"]
[BlackTeam "SRB"]
[WhiteClock "0:01:59"]
[BlackClock "0:01:02"]

1. Nf3 {[%clk 0:03:00]}  d5 {[%clk 0:02:59]} 2. b3 {[%clk 0:03:00]}  Nf6 {[%clk 0:02:57]} 3. Ba3 {[%clk 0:02:59]}  a5 {[%clk 0:02:51]} 4. c4 {[%clk 0:02:56]}  c6 {[%clk 0:02:49]} 5. e3 {[%clk 0:02:53]}  a4 {[%clk 0:02:46]} 6. cxd5 {[%clk 0:02:53]}  Nxd5 {[%clk 0:02:46]} 7. Be2 {[%clk 0:02:50]}  Nd7 {[%clk 0:02:41]} 8. O-O {[%clk 0:02:49]}  axb3 {[%clk 0:02:39]} 9. axb3 {[%clk 0:02:49]}  N5b6 {[%clk 0:02:20]} 10. Nc3 {[%clk 0:02:46]}  e6 {[%clk 0:02:20]} 11. Bxf8 {[%clk 0:02:43]}  Nxf8 {[%clk 0:02:20]} 12. Rxa8 {[%clk 0:02:42]}  Nxa8 {[%clk 0:02:21]} 13. d4 {[%clk 0:02:41]}  Ng6 {[%clk 0:02:21]} 14. Qa1 {[%clk 0:02:40]}  Nc7 {[%clk 0:02:21]} 15. Qa3 {[%clk 0:02:39]}  Qe7 {[%clk 0:02:19]} 16. Qa5 {[%clk 0:02:39]}  O-O {[%clk 0:02:16]} 17. Rc1 {[%clk 0:02:39]}  h6 {[%clk 0:02:05]} 18. b4 {[%clk 0:02:38]}  Re8 {[%clk 0:01:52]} 19. b5 {[%clk 0:02:36]}  c5 {[%clk 0:01:41]} 20. dxc5 {[%clk 0:02:27]}  e5 {[%clk 0:01:30]} 21. Ne4 {[%clk 0:02:24]}  f5 {[%clk 0:01:28]} 22. Nd6 {[%clk 0:02:22]}  Rd8 {[%clk 0:01:28]} 23. Qb6 {[%clk 0:02:08]}  Be6 {[%clk 0:01:24]} 24. Nxb7 {[%clk 0:02:04]}  Ra8 {[%clk 0:01:22]} 25. Qd6 {[%clk 0:02:01]}  Qxd6 {[%clk 0:01:02]} 26. Nxd6 {[%clk 0:01:59]} 1-0

[Event "January 9 Late 2024"]
[Site "https://www.chess.com"]
[Date "2024.01.09"]
[Round "6"]
[White "Pasti, Aron"]
[Black "Durarbayli, Vasif"]
[Result "0-1"]
[Board "56"]
[TimeControl "180+1"]
[WhiteFideId "785857"]
[BlackFideId "13402935"]
[WhiteElo "2560"]
[BlackElo "2851"]
[WhiteTeam "HUN"]
[BlackTeam "AZE"]
[WhiteClock "0:00:01"]
[BlackClock "0:01:23"]

1. e4 {[%clk 0:03:00]}  c5 {[%clk 0:02:55]} 2. Nf3 {[%clk 0:02:59]}  d6 {[%clk 0:02:55]} 3. d4 {[%clk 0:02:59]}  cxd4 {[%clk 0:02:56]} 4. Nxd4 {[%clk 0:02:59]}  Nf6 {[%clk 0:02:56]} 5. Nc3 {[%clk 0:02:59]}  Nc6 {[%clk 0:02:57]} 6. Bg5 {[%clk 0:02:59]}  Qb6 {[%clk 0:02:58]} 7. Nb3 {[%clk 0:02:33]}  e6 {[%clk 0:02:57]} 8. Qd2 {[%clk 0:02:29]}  a6 {[%clk 0:02:57]} 9. O-O-O {[%clk 0:02:29]}  Be7 {[%clk 0:02:58]} 10. f4 {[%clk 0:02:28]}  O-O {[%clk 0:02:57]} 11. Qe1 {[%clk 0:02:26]}  Rd8 {[%clk 0:02:49]} 12. e5 {[%clk 0:02:23]}  dxe5 {[%clk 0:02:43]} 13. fxe5 {[%clk 0:02:14]}  Rxd1+ {[%clk 0:02:42]} 14. Qxd1 {[%clk 0:01:28]}  Nxe5 {[%clk 0:02:37]} 15. h3 {[%clk 0:01:23]}  Bd7 {[%clk 0:02:27]} 16. Qe1 {[%clk 0:01:18]}  Ng6 {[%clk 0:02:19]} 17. Bd3 {[%clk 0:01:15]}  Bc6 {[%clk 0:02:18]} 18. h4 {[%clk 0:01:16]}  Nf8 {[%clk 0:02:09]} 19. h5 {[%clk 0:01:13]}  h6 {[%clk 0:02:09]} 20. Be3 {[%clk 0:01:02]}  Qc7 {[%clk 0:02:04]} 21. Nd4 {[%clk 0:01:01]}  Rd8 {[%clk 0:01:59]} 22. Kb1 {[%clk 0:00:57]}  b5 {[%clk 0:01:55]} 23. Rf1 {[%clk 0:00:39]}  Bb7 {[%clk 0:01:51]} 24. Bg1 {[%clk 0:00:24]}  Nxh5 {[%clk 0:01:40]} 25. g4 {[%clk 0:00:23]}  Nf4 {[%clk 0:01:35]} 26. Be4 {[%clk 0:00:11]}  Bxe4 {[%clk 0:01:33]} 27. Nxe4 {[%clk 0:00:12]}  N8g6 {[%clk 0:01:31]} 28. Ng3 {[%clk 0:00:08]}  Bh4 {[%clk 0:01:30]} 29. Rf3 {[%clk 0:00:05]}  Qd6 {[%clk 0:01:24]} 30. c3 {[%clk 0:00:03]}  e5 {[%clk 0:01:24]} 31. Ndf5 {[%clk 0:00:01]}  Qd1+ {[%clk 0:01:23]} 0-1

[Event "January 9 Late 2024"]
[Site "https://www.chess.com"]
[Date "2024.01.09"]
[Round "6"]
[White "Maksimovic, Bojan"]
[Black "Erzhanov, Arman"]
[Result "1-0"]
[Board "57"]
[TimeControl "180+1"]
[WhiteFideId "14408120"]
[BlackFideId "4138821"]
[WhiteElo "2839"]
[BlackElo "2558"]
[WhiteTeam "BIH"]
[BlackTeam "KAZ"]
[WhiteClock "0:00:45"]
[BlackClock "0:00:00"]

1. a3 {[%clk 0:03:00]}  c5 {[%clk 0:02:59]} 2. b4 {[%clk 0:03:00]}  b6 {[%clk 0:02:57]} 3. Bb2 {[%clk 0:02:58]}  Bb7 {[%clk 0:02:57]} 4. Nf3 {[%clk 0:02:59]}  Nf6 {[%clk 0:02:57]} 5. e3 {[%clk 0:02:59]}  e6 {[%clk 0:02:57]} 6. bxc5 {[%clk 0:02:53]}  bxc5 {[%clk 0:02:58]} 7. c4 {[%clk 0:02:54]}  Qb6 {[%clk 0:02:52]} 8. Qc1 {[%clk 0:02:49]}  Nc6 {[%clk 0:02:50]} 9. Nc3 {[%clk 0:02:49]}  Na5 {[%clk 0:02:49]} 10. Rb1 {[%clk 0:02:49]}  a6 {[%clk 0:02:40]} 11. Ba1 {[%clk 0:02:49]}  Qc7 {[%clk 0:02:39]} 12. Bd3 {[%clk 0:02:29]}  Bd6 {[%clk 0:02:34]} 13. Qc2 {[%clk 0:02:24]}  O-O {[%clk 0:02:27]} 14. Ne4 {[%clk 0:02:25]}  Nxe4 {[%clk 0:02:21]} 15. Bxe4 {[%clk 0:02:26]}  Bxe4 {[%clk 0:02:20]} 16. Qxe4 {[%clk 0:02:27]}  f5 {[%clk 0:02:11]} 17. Qd3 {[%clk 0:02:21]}  Rab8 {[%clk 0:02:00]} 18. Ke2 {[%clk 0:02:21]}  Nc6 {[%clk 0:01:37]} 19. h3 {[%clk 0:02:20]}  Rxb1 {[%clk 0:01:23]} 20. Rxb1 {[%clk 0:02:19]}  Rb8 {[%clk 0:01:24]} 21. Rxb8+ {[%clk 0:02:19]}  Nxb8 {[%clk 0:01:22]} 22. g4 {[%clk 0:02:19]}  fxg4 {[%clk 0:01:09]} 23. hxg4 {[%clk 0:02:20]}  Be7 {[%clk 0:01:00]} 24. g5 {[%clk 0:01:55]}  Nc6 {[%clk 0:00:59]} 25. Qc3 {[%clk 0:01:43]}  Bf8 {[%clk 0:00:59]} 26. Qd3 {[%clk 0:01:38]}  Qd6 {[%clk 0:00:56]} 27. Qe4 {[%clk 0:01:36]}  Be7 {[%clk 0:00:40]} 28. Bc3 {[%clk 0:01:35]}  Qb8 {[%clk 0:00:34]} 29. Qc2 {[%clk 0:01:24]}  Bd6 {[%clk 0:00:31]} 30. Qd3 {[%clk 0:01:16]}  Qc7 {[%clk 0:00:29]} 31. g6 {[%clk 0:01:08]}  h6 {[%clk 0:00:25]} 32. Qb1 {[%clk 0:01:06]}  Ne7 {[%clk 0:00:19]} 33. Nh4 {[%clk 0:00:58]}  Qb8 {[%clk 0:00:18]} 34. Qe4 {[%clk 0:00:53]}  Nc6 {[%clk 0:00:08]} 35. f4 {[%clk 0:00:47]}  Ne7 {[%clk 0:00:05]} 36. f5 {[%clk 0:00:47]}  Nxf5 {[%clk 0:00:04]} 37. Nxf5 {[%clk 0:00:48]}  exf5 {[%clk 0:00:04]} 38. Qd5+ {[%clk 0:00:48]}  Kh8 {[%clk 0:00:03]} 39. Qxf5 {[%clk 0:00:49]}  Qe8 {[%clk 0:00:00]} 40. Qh5 {[%clk 0:00:45]} 1-0

[Event "January 9 Late 2024"]
[Site "https://www.chess.com"]
[Date "2024.01.09"]
[Round "6"]
[White "Maltsevskaya, Aleksandra"]
[Black "Lagarde, Maxime"]
[Result "0-1"]
[Board "59"]
[TimeControl "180+1"]
[WhiteFideId "24174041"]
[BlackFideId "662399"]
[WhiteElo "2557"]
[BlackElo "2830"]
[WhiteTeam "POL"]
[BlackTeam "FRA"]
[WhiteClock "0:00:00"]
[BlackClock "0:01:18"]

1. e4 {[%clk 0:02:52]}  c6 {[%clk 0:02:59]} 2. d4 {[%clk 0:02:51]}  d5 {[%clk 0:03:00]} 3. e5 {[%clk 0:02:44]}  Bf5 {[%clk 0:02:59]} 4. c4 {[%clk 0:02:44]}  e6 {[%clk 0:02:58]} 5. h4 {[%clk 0:02:44]}  dxc4 {[%clk 0:02:55]} 6. Bxc4 {[%clk 0:02:39]}  Ne7 {[%clk 0:02:55]} 7. Nc3 {[%clk 0:02:39]}  h6 {[%clk 0:02:54]} 8. Nge2 {[%clk 0:02:36]}  Nd7 {[%clk 0:02:52]} 9. Ng3 {[%clk 0:02:36]}  Nb6 {[%clk 0:02:49]} 10. Bb3 {[%clk 0:02:31]}  Bg6 {[%clk 0:02:46]} 11. h5 {[%clk 0:02:30]}  Bh7 {[%clk 0:02:46]} 12. Qg4 {[%clk 0:02:24]}  Nf5 {[%clk 0:02:44]} 13. Be3 {[%clk 0:02:07]}  Qd7 {[%clk 0:02:42]} 14. O-O {[%clk 0:01:48]}  O-O-O {[%clk 0:02:24]} 15. a4 {[%clk 0:01:38]}  Nd5 {[%clk 0:02:23]} 16. Nxf5 {[%clk 0:01:20]}  Bxf5 {[%clk 0:02:22]} 17. Qf3 {[%clk 0:01:07]}  Bb4 {[%clk 0:02:04]} 18. Rfc1 {[%clk 0:01:04]}  Kb8 {[%clk 0:02:01]} 19. a5 {[%clk 0:01:03]}  a6 {[%clk 0:02:00]} 20. Na4 {[%clk 0:00:48]}  Qe7 {[%clk 0:01:50]} 21. Nc5 {[%clk 0:00:39]}  Bxc5 {[%clk 0:01:43]} 22. Rxc5 {[%clk 0:00:40]}  Qh4 {[%clk 0:01:38]} 23. Bxd5 {[%clk 0:00:39]}  Rxd5 {[%clk 0:01:36]} 24. Rxd5 {[%clk 0:00:38]}  cxd5 {[%clk 0:01:37]} 25. b4 {[%clk 0:00:33]}  Qg4 {[%clk 0:01:34]} 26. Qxg4 {[%clk 0:00:12]}  Bxg4 {[%clk 0:01:35]} 27. Rb1 {[%clk 0:00:13]}  Be2 {[%clk 0:01:32]} 28. f3 {[%clk 0:00:11]}  Rc8 {[%clk 0:01:30]} 29. Rc1 {[%clk 0:00:11]}  Bc4 {[%clk 0:01:28]} 30. Kf2 {[%clk 0:00:11]}  Kc7 {[%clk 0:01:28]} 31. g4 {[%clk 0:00:11]}  Kc6 {[%clk 0:01:29]} 32. g5 {[%clk 0:00:11]}  hxg5 {[%clk 0:01:28]} 33. Rg1 {[%clk 0:00:09]}  Rh8 {[%clk 0:01:29]} 34. Rxg5 {[%clk 0:00:08]}  Rh7 {[%clk 0:01:30]} 35. h6 {[%clk 0:00:06]}  gxh6 {[%clk 0:01:28]} 36. Rh5 {[%clk 0:00:05]}  Kb5 {[%clk 0:01:28]} 37. Bd2 {[%clk 0:00:04]}  Bd3 {[%clk 0:01:29]} 38. Ke3 {[%clk 0:00:04]}  Bg6 {[%clk 0:01:29]} 39. Rh1 {[%clk 0:00:02]}  h5 {[%clk 0:01:27]} 40. Rh4 {[%clk 0:00:02]}  Rh8 {[%clk 0:01:25]} 41. f4 {[%clk 0:00:00]}  Bf5 {[%clk 0:01:18]} 0-1

[Event "January 9 Late 2024"]
[Site "https://www.chess.com"]
[Date "2024.01.09"]
[Round "6"]
[White "Van Dael, Siem"]
[Black "Seemann, Jakub"]
[Result "1-0"]
[Board "60"]
[TimeControl "180+1"]
[WhiteFideId "1049771"]
[BlackFideId "21874697"]
[WhiteElo "2556"]
[BlackElo "2820"]
[WhiteTeam "NED"]
[BlackTeam "POL"]
[WhiteClock "0:00:25"]
[BlackClock "0:00:38"]

1. e4 {[%clk 0:03:00]}  d6 {[%clk 0:03:00]} 2. d4 {[%clk 0:02:58]}  g6 {[%clk 0:03:01]} 3. Nc3 {[%clk 0:02:48]}  Bg7 {[%clk 0:03:02]} 4. Be3 {[%clk 0:02:48]}  Nf6 {[%clk 0:03:02]} 5. Qd2 {[%clk 0:02:47]}  O-O {[%clk 0:03:02]} 6. Bh6 {[%clk 0:02:46]}  c6 {[%clk 0:03:02]} 7. Bxg7 {[%clk 0:02:44]}  Kxg7 {[%clk 0:03:02]} 8. Nf3 {[%clk 0:02:43]}  b5 {[%clk 0:03:00]} 9. Bd3 {[%clk 0:02:35]}  Bg4 {[%clk 0:02:59]} 10. Qf4 {[%clk 0:02:30]}  Bxf3 {[%clk 0:02:59]} 11. Qxf3 {[%clk 0:02:29]}  e5 {[%clk 0:02:59]} 12. dxe5 {[%clk 0:02:26]}  dxe5 {[%clk 0:03:00]} 13. O-O {[%clk 0:02:24]}  Qe7 {[%clk 0:03:00]} 14. a4 {[%clk 0:02:21]}  b4 {[%clk 0:03:00]} 15. Nd1 {[%clk 0:02:22]}  Nbd7 {[%clk 0:03:00]} 16. Ne3 {[%clk 0:02:21]}  Nc5 {[%clk 0:03:00]} 17. Rfe1 {[%clk 0:02:18]}  Rfd8 {[%clk 0:02:56]} 18. Nc4 {[%clk 0:02:03]}  b3 {[%clk 0:02:55]} 19. Rad1 {[%clk 0:01:54]}  bxc2 {[%clk 0:02:55]} 20. Bxc2 {[%clk 0:01:54]}  Rxd1 {[%clk 0:02:34]} 21. Rxd1 {[%clk 0:01:52]}  a5 {[%clk 0:02:35]} 22. Qc3 {[%clk 0:01:48]}  Nfd7 {[%clk 0:02:33]} 23. Nxa5 {[%clk 0:01:44]}  Rc8 {[%clk 0:02:18]} 24. b4 {[%clk 0:01:26]}  Ne6 {[%clk 0:02:16]} 25. Nxc6 {[%clk 0:01:27]}  Qg5 {[%clk 0:01:45]} 26. Rxd7 {[%clk 0:01:16]}  Nf4 {[%clk 0:01:43]} 27. Qxe5+ {[%clk 0:01:14]}  Qxe5 {[%clk 0:01:40]} 28. Nxe5 {[%clk 0:01:15]}  Rxc2 {[%clk 0:01:40]} 29. Rxf7+ {[%clk 0:01:15]}  Kg8 {[%clk 0:01:23]} 30. h3 {[%clk 0:01:12]}  Nd3 {[%clk 0:01:10]} 31. Re7 {[%clk 0:01:04]}  Nxf2 {[%clk 0:01:10]} 32. Ng4 {[%clk 0:00:54]}  Nd3 {[%clk 0:01:03]} 33. b5 {[%clk 0:00:50]}  h5 {[%clk 0:01:01]} 34. Nf6+ {[%clk 0:00:47]}  Kf8 {[%clk 0:01:02]} 35. Ra7 {[%clk 0:00:40]}  Rb2 {[%clk 0:00:45]} 36. b6 {[%clk 0:00:29]}  Rb1+ {[%clk 0:00:41]} 37. Kh2 {[%clk 0:00:29]}  Nc5 {[%clk 0:00:41]} 38. a5 {[%clk 0:00:26]}  g5 {[%clk 0:00:40]} 39. Nd7+ {[%clk 0:00:25]}  Nxd7 {[%clk 0:00:39]} 40. Rxd7 {[%clk 0:00:26]}  g4 {[%clk 0:00:39]} 41. hxg4 {[%clk 0:00:26]}  hxg4 {[%clk 0:00:38]} 42. Kg3 {[%clk 0:00:25]} 1-0

[Event "January 9 Late 2024"]
[Site "https://www.chess.com"]
[Date "2024.01.09"]
[Round "6"]
[White "Aliakbarov, Anar"]
[Black "Tristan, Leonardo"]
[Result "0-1"]
[Board "63"]
[TimeControl "180+1"]
[WhiteFideId "13401858"]
[BlackFideId "113816"]
[WhiteElo "2551"]
[BlackElo "2757"]
[WhiteTeam "TUR"]
[BlackTeam "ARG"]
[WhiteClock "0:00:03"]
[BlackClock "0:00:11"]

1. d4 {[%clk 0:03:00]}  d5 {[%clk 0:03:00]} 2. c4 {[%clk 0:02:59]}  e6 {[%clk 0:03:00]} 3. cxd5 {[%clk 0:02:58]}  exd5 {[%clk 0:03:00]} 4. Nc3 {[%clk 0:02:59]}  c6 {[%clk 0:02:56]} 5. Qc2 {[%clk 0:02:58]}  g6 {[%clk 0:02:51]} 6. Bf4 {[%clk 0:02:06]}  Bf5 {[%clk 0:02:49]} 7. Qd2 {[%clk 0:02:06]}  Bd6 {[%clk 0:02:44]} 8. Nf3 {[%clk 0:02:01]}  Nf6 {[%clk 0:02:32]} 9. h3 {[%clk 0:01:55]}  Qe7 {[%clk 0:02:21]} 10. Bxd6 {[%clk 0:01:40]}  Qxd6 {[%clk 0:02:21]} 11. e3 {[%clk 0:01:40]}  Nbd7 {[%clk 0:02:17]} 12. Bd3 {[%clk 0:01:40]}  Ne4 {[%clk 0:02:02]} 13. Bxe4 {[%clk 0:01:34]}  dxe4 {[%clk 0:01:57]} 14. Nh4 {[%clk 0:01:33]}  Nf6 {[%clk 0:01:50]} 15. g4 {[%clk 0:01:28]}  Bd7 {[%clk 0:01:43]} 16. g5 {[%clk 0:01:28]}  Nd5 {[%clk 0:01:43]} 17. Nxe4 {[%clk 0:01:28]}  Qe7 {[%clk 0:01:43]} 18. Nc5 {[%clk 0:01:21]}  Qxg5 {[%clk 0:01:31]} 19. Nf3 {[%clk 0:00:41]}  Qe7 {[%clk 0:01:30]} 20. Nxb7 {[%clk 0:00:19]}  Bxh3 {[%clk 0:01:30]} 21. Rxh3 {[%clk 0:00:12]}  Qxb7 {[%clk 0:01:30]} 22. O-O-O {[%clk 0:00:13]}  O-O-O {[%clk 0:01:28]} 23. Kb1 {[%clk 0:00:11]}  Kb8 {[%clk 0:01:28]} 24. Ne5 {[%clk 0:00:11]}  c5 {[%clk 0:01:24]} 25. Rc1 {[%clk 0:00:07]}  f6 {[%clk 0:01:06]} 26. Nc4 {[%clk 0:00:02]}  Nb4 {[%clk 0:00:41]} 27. Na5 {[%clk 0:00:02]}  Qe4+ {[%clk 0:00:26]} 28. Ka1 {[%clk 0:00:03]}  Qe6 {[%clk 0:00:19]} 29. b3 {[%clk 0:00:03]}  Qxh3 {[%clk 0:00:19]} 30. Rxc5 {[%clk 0:00:04]}  Qh1+ {[%clk 0:00:14]} 31. Kb2 {[%clk 0:00:04]}  Na6 {[%clk 0:00:12]} 32. Rb5+ {[%clk 0:00:04]}  Ka8 {[%clk 0:00:13]} 33. Qc2 {[%clk 0:00:04]}  Rc8 {[%clk 0:00:12]} 34. Qd3 {[%clk 0:00:03]}  Qc1# {[%clk 0:00:11]} 0-1